fUSD/lending_fUSD_20240121
["ID","MTS","AMOUNT","RATE_DAILY","PERIOD"]
[312398506,1705858314158,-2811.02,0.00042191,31]
[312398507,1705858314172,-1486.68,0.00042191,31]
[312398508,1705858314187,-1020.67,0.00042191,31]
[312398509,1705858314200,-500.0,0.00042191,31]
[312398510,1705858314217,-766.24,0.00042191,31]
[312398511,1705858314231,-500.0,0.00042191,31]
[312398512,1705858314251,-500.0,0.00042191,31]
[312398513,1705858314266,-4475.3,0.00042191,31]
[312398514,1705858314281,-439.99853795,0.00042191,31]
[312398515,1705858314295,-678.56,0.00042191,31]
[312398516,1705858314310,-4341.11,0.00042191,31]
[312398517,1705858314324,-500.0,0.00042191,31]
[312398518,1705858314339,-244.73822153,0.00042191,31]
[312398519,1705858314353,-500.0,0.00042191,31]
[312398520,1705858314368,-500.0,0.00042191,31]
[312398521,1705858314382,-500.0,0.00042191,31]
[312398522,1705858314397,-500.0,0.00042191,31]
[312398523,1705858314412,-893.6,0.00042191,31]
[312398524,1705858314438,-500.0,0.00042191,31]
[312398525,1705858314461,-1312.71,0.00042191,31]
[312398526,1705858314480,-1879.16,0.00042191,31]
[312398527,1705858314500,-718.8,0.00042191,31]
[312398528,1705858314518,-500.0,0.00042191,31]
[312398529,1705858314537,-843.82,0.00042191,31]
[312398530,1705858314554,-512.71,0.00042191,31]
[312398531,1705858314570,-507.62400836,0.00042191,31]
[312398532,1705858314586,-1267.64,0.00042191,31]
[312398533,1705858314601,-264.32057075,0.00042191,31]
[312398534,1705858314617,-808.75,0.00042191,31]
[312398535,1705858314633,-586.73,0.00042191,31]
[312398536,1705858314649,-1163.91,0.00042191,31]
[312398537,1705858314666,-500.0,0.00042191,31]
[312398538,1705858314681,-2402.4,0.00042191,31]
[312398539,1705858314697,-500.0,0.00042191,31]
[312398540,1705858314711,-500.0,0.00042191,31]
[312398541,1705858314726,-500.0,0.00042191,31]
[312398542,1705858314740,-1028.17,0.00042191,31]
[312398543,1705858314754,-767.97,0.00042191,31]
[312398544,1705858314769,-822.33,0.00042191,31]
[312398545,1705858314784,-1331.9,0.00042191,31]
[312398546,1705858314798,-1231.24,0.00042191,31]
[312398547,1705858314812,-500.0,0.00042191,31]
[312398548,1705858314826,-951.78,0.00042191,31]
[312398549,1705858314840,-673.38,0.00042191,31]
[312398550,1705858314854,-500.0,0.00042191,31]
[312398551,1705858314869,-4814.61,0.00042191,31]
[312398552,1705858314882,-623.65,0.00042191,31]
[312398553,1705858314897,-500.0,0.00042191,31]
[312398554,1705858314911,-2661.69,0.00042191,31]
[312398555,1705858314925,-2221.22,0.00042191,31]
[312398556,1705858314940,-1307.43,0.00042191,31]
[312398557,1705858314955,-1998.1,0.00042191,31]
[312398558,1705858314969,-2919.4,0.00042191,31]
[312398559,1705858314984,-500.0,0.00042191,31]
[312398560,1705858314999,-592.86805638,0.00042191,31]
[312398561,1705858315013,-1516.66,0.00042191,31]
[312398562,1705858315028,-4554.17,0.00042191,31]
[312398563,1705858315043,-1723.52,0.00042191,31]
[312398564,1705858315059,-500.0,0.00042191,31]
[312398565,1705858315074,-500.0,0.00042191,31]
[312398566,1705858315091,-500.0,0.00042191,31]
[312398567,1705858315107,-500.0,0.00042191,31]
[312398568,1705858315122,-966.48,0.00042191,31]
[312398569,1705858315137,-715.12,0.00042191,31]
[312398570,1705858315152,-1352.25,0.00042191,31]
[312398571,1705858315166,-1024.58,0.00042191,31]
[312398572,1705858315180,-500.0,0.00042191,31]
[312398573,1705858315195,-524.41890255,0.00042191,31]
[312398574,1705858315209,-500.0,0.00042191,31]
[312398575,1705858315501,-15221.27,0.00042191,31]
[312398576,1705858315555,-500.0,0.00042191,31]
[312398577,1705858315564,-500.0,0.00042191,31]
[312398578,1705858315573,-1317.11,0.00042191,31]
[312398579,1705858315582,-500.0,0.00042191,31]
[312398580,1705858315591,-801.04,0.00042191,31]
[312398581,1705858315600,-1430.58,0.00042191,31]
[312398582,1705858315609,-719.66,0.00042191,31]
[312398583,1705858315618,-500.0,0.00042191,31]
[312398584,1705858315627,-500.0,0.00042191,31]
[312398585,1705858315636,-500.0,0.00042191,31]
[312398586,1705858315645,-1102.3,0.00042191,31]
[312398587,1705858315654,-2450.04,0.00042191,31]
[312398588,1705858315664,-500.0,0.00042191,31]
[312398589,1705858315674,-2398.67,0.00042191,31]
[312398590,1705858315683,-11755.0,0.00042191,31]
[312398591,1705858315692,-500.0,0.00042191,31]
[312398592,1705858315701,-322.7223203,0.00042191,31]
[312398593,1705858315711,-580.18,0.00042191,31]
[312398594,1705858315720,-500.0,0.00042191,31]
[312398595,1705858315729,-6029.9,0.00042191,31]
[312398596,1705858315738,-500.0,0.00042191,31]
[312398597,1705858315748,-500.0,0.00042191,31]
[312398598,1705858315757,-4782.28,0.00042191,31]
[312398599,1705858315766,-747.5,0.00042191,31]
[312398600,1705858315775,-633.63,0.00042191,31]
[312398601,1705858315784,-1275.11,0.00042191,31]
[312398602,1705858315793,-500.0,0.00042191,31]
[312398603,1705858315802,-1385.95,0.00042191,31]
[312398604,1705858315811,-501.65665569,0.00042191,31]
[312398605,1705858315821,-838.42,0.00042191,31]
[312398606,1705858315830,-1278.23,0.00042191,31]
[312398607,1705858315839,-507.82751749,0.00042191,31]
[312398608,1705858315848,-500.0,0.00042191,31]
[312398609,1705858315857,-500.0,0.00042191,31]
[312398610,1705858315867,-500.0,0.00042191,31]
[312398611,1705858315876,-500.0,0.00042191,31]
[312398612,1705858315885,-659.66,0.00042191,31]
[312398613,1705858315894,-2022.75,0.00042191,31]
[312398614,1705858315904,-500.0,0.00042191,31]
[312398615,1705858315914,-848.6,0.00042191,31]
[312398616,1705858315923,-3652.55,0.00042191,31]
[312398617,1705858315933,-3523.18,0.00042191,31]
[312398618,1705858315942,-500.0,0.00042191,31]
[312398619,1705858315951,-718.17,0.00042191,31]
[312398620,1705858315961,-898.33,0.00042191,31]
[312398621,1705858315970,-500.0,0.00042191,31]
[312398622,1705858315980,-6799.03,0.00042191,31]
[312398623,1705858315989,-1141.22,0.00042191,31]
[312398624,1705858315998,-505.86110356,0.00042191,31]
[312398625,1705858316008,-1741.89,0.00042191,31]
[312398626,1705858316017,-1623.13,0.00042191,31]
[312398627,1705858316026,-278.49687852,0.00042191,31]
[312398628,1705858316035,-530.67079446,0.00042191,31]
[312398629,1705858316045,-526.16,0.00042191,31]
[312398630,1705858316055,-500.0,0.00042191,31]
[312398631,1705858316068,-771.85,0.00042191,31]
[312398632,1705858316077,-500.0,0.00042191,31]
[312398633,1705858316088,-569.27,0.00042191,31]
[312398634,1705858316098,-2338.74,0.00042191,31]
[312398635,1705858316107,-1004.91,0.00042191,31]
[312398636,1705858316116,-599.51,0.00042191,31]
[312398637,1705858316126,-683.46,0.00042191,31]
[312398638,1705858316136,-1665.32,0.00042191,31]
[312398639,1705858316144,-500.0,0.00042191,31]
[312398640,1705858316154,-506.28940672,0.00042191,31]
[312398641,1705858316164,-1953.86,0.00042191,31]
[312398642,1705858316174,-500.0,0.00042191,31]
[312398643,1705858316183,-500.0,0.00042191,31]
[312398644,1705858316192,-500.0,0.00042191,31]
[312398645,1705858316201,-1307.02,0.00042191,31]
[312398646,1705858316210,-2015.53,0.00042191,31]
[312398647,1705858316220,-1641.41,0.00042191,31]
[312398648,1705858316229,-519.47868903,0.00042191,31]
[312398649,1705858316238,-1542.52,0.00042191,31]
[312398650,1705858316248,-500.0,0.00042191,31]
[312398651,1705858316257,-500.0,0.00042191,31]
[312398652,1705858316266,-1132.72,0.00042191,31]
[312398653,1705858316275,-500.0,0.00042191,31]
[312398654,1705858316284,-500.0,0.00042191,31]
[312398655,1705858316294,-536.23,0.00042191,31]
[312398656,1705858316303,-500.0,0.00042191,31]
[312398657,1705858316312,-500.0,0.00042191,31]
[312398658,1705858316322,-500.0,0.00042191,7]
[312398659,1705858316331,-860.42,0.00042191,31]
[312398660,1705858316340,-500.0,0.00042191,31]
[312398661,1705858316349,-500.0,0.00042191,31]
[312398662,1705858316359,-639.35,0.00042191,31]
[312398663,1705858316368,-500.0,0.00042191,31]
[312398664,1705858316377,-529.07,0.00042191,31]
[312398665,1705858316386,-500.0,0.00042191,31]
[312398666,1705858316395,-500.0,0.00042191,31]
[312398667,1705858316404,-1102.2,0.00042191,31]
[312398668,1705858316413,-2003.86,0.00042191,31]
[312398669,1705858316422,-276.53861288,0.00042191,31]
[312398670,1705858316431,-500.0,0.00042191,5]
[312398671,1705858316440,-2129.93,0.00042191,31]
[312398672,1705858316449,-971.37,0.00042191,31]
[312398673,1705858316459,-500.0,0.00042191,31]
[312398674,1705858316468,-500.0,0.00042191,31]
[312398675,1705858316477,-500.0,0.00042191,31]
[312398676,1705858316486,-1208.05,0.00042191,31]
[312398677,1705858316495,-500.0,0.00042191,31]
[312398678,1705858316504,-3628.57,0.00042191,31]
[312398679,1705858316513,-4143.87,0.00042191,31]
[312398680,1705858316522,-3744.16,0.00042191,31]
[312398681,1705858316531,-8492.56,0.00042191,31]
[312398682,1705858316540,-563.17,0.00042191,31]
[312398683,1705858316549,-500.0,0.00042191,31]
[312398684,1705858316558,-555.83,0.00042191,10]
[312398685,1705858316566,-2561.14,0.00042191,31]
[312398686,1705858316575,-500.0,0.00042191,31]
[312398687,1705858316584,-1152.01,0.00042191,31]
[312398688,1705858316593,-1207.99,0.00042191,31]
[312398689,1705858316602,-500.0,0.00042191,31]
[312398690,1705858316611,-500.0,0.00042191,31]
[312398691,1705858316619,-1944.17,0.00042191,31]
[312398692,1705858316628,-688.17,0.00042191,31]
[312398693,1705858316637,-766.84,0.00042191,31]
[312398694,1705858316646,-726.63,0.00042191,31]
[312398695,1705858316655,-500.0,0.00042191,31]
[312398696,1705858316664,-4478.54,0.00042191,31]
[312398697,1705858316673,-500.0,0.00042191,31]
[312398698,1705858316682,-1741.83,0.00042191,31]
[312398699,1705858316691,-4116.72,0.00042191,31]
[312398700,1705858316700,-2317.89,0.00042191,31]
[312398701,1705858316710,-719.71,0.00042191,31]
[312398702,1705858316720,-778.89,0.00042191,31]
[312398703,1705858316729,-17414.88,0.00042191,31]
[312398704,1705858316738,-1683.36,0.00042191,31]
[312398705,1705858316747,-509.00749523,0.00042191,31]
[312398706,1705858316756,-1457.58,0.00042191,31]
[312398707,1705858316765,-506.89,0.00042191,31]
[312398708,1705858316774,-585.2,0.00042191,31]
[312398709,1705858316783,-500.0,0.00042191,31]
[312398710,1705858316793,-712.61,0.00042191,31]
[312398711,1705858316801,-777.78,0.00042191,31]
[312398712,1705858316810,-500.0,0.00042191,31]
[312398713,1705858316819,-1992.63,0.00042191,31]
[312398714,1705858316828,-1297.78,0.00042191,31]
[312398715,1705858316837,-500.0,0.00042191,31]
[312398716,1705858316847,-1673.34,0.00042191,31]
[312398717,1705858316856,-500.0,0.00042191,2]
[312398718,1705858316866,-676.02,0.00042191,31]
[312398719,1705858316875,-1276.24,0.00042191,31]
[312398720,1705858316884,-1515.16,0.00042191,31]
[312398721,1705858316894,-500.0,0.00042191,31]
[312398722,1705858316904,-519.99,0.00042191,31]
[312398723,1705858316914,-559.3,0.00042191,31]
[312398724,1705858316923,-832.1,0.00042191,31]
[312398725,1705858316934,-500.0,0.00042191,31]
[312398726,1705858316944,-1114.3,0.00042191,31]
[312398727,1705858316957,-617.68,0.00042191,31]
[312398728,1705858316967,-500.0,0.00042191,31]
[312398729,1705858316977,-500.0,0.00042191,31]
[312398730,1705858316987,-4316.85,0.00042191,31]
[312398731,1705858316997,-698.31,0.00042191,31]
[312398732,1705858317006,-500.0,0.00042191,31]
[312398733,1705858317016,-15611.05,0.00042191,31]
[312398734,1705858317026,-1105.83,0.00042191,31]
[312398735,1705858317037,-500.0,0.00042191,31]
[312398736,1705858317047,-500.0,0.00042191,31]
[312398737,1705858317060,-500.0,0.00042191,31]
[312398738,1705858317071,-578.73,0.00042191,31]
[312398739,1705858317081,-551.63578072,0.00042191,31]
[312398740,1705858317097,-758.0,0.00042191,31]
[312398741,1705858317107,-3781.38,0.00042191,31]
[312398742,1705858317116,-500.0,0.00042191,31]
[312398743,1705858317126,-500.0,0.00042191,31]
[312398744,1705858317135,-570.79,0.00042191,31]
[312398745,1705858317144,-5511.39,0.00042191,31]
[312398746,1705858317154,-180.01771953,0.00042191,31]
[312398747,1705858317164,-1000.0,0.00042191,30]
[312398748,1705858317173,-500.0,0.00042191,7]
[312398749,1705858317183,-1748.73,0.00042191,31]
[312398750,1705858317192,-500.0,0.00042191,31]
[312398751,1705858317202,-1625.11,0.00042191,31]
[312398752,1705858317215,-1977.31,0.00042191,31]
[312398753,1705858317226,-500.0,0.00042191,31]
[312398754,1705858317238,-500.0,0.00042191,31]
[312398755,1705858317248,-505.64991813,0.00042191,31]
[312398756,1705858317258,-500.0,0.00042191,31]
[312398757,1705858317267,-682.73,0.00042191,31]
[312398758,1705858317277,-997.22,0.00042191,31]
[312398759,1705858317286,-1819.37,0.00042191,31]
[312398760,1705858317296,-908.78,0.00042191,31]
[312398761,1705858317306,-915.75,0.00042191,31]
[312398762,1705858317315,-537.99,0.00042191,30]
[312398763,1705858317324,-1258.24,0.00042191,31]
[312398764,1705858317333,-1216.0,0.00042191,31]
[312398765,1705858317343,-500.0,0.00042191,31]
[312398766,1705858317352,-500.0,0.00042191,31]
[312398767,1705858317361,-1270.4,0.00042191,31]
[312398768,1705858317371,-2077.28,0.00042191,31]
[312398769,1705858317380,-500.0,0.00042191,31]
[312398770,1705858317389,-500.0,0.00042191,31]
[312398771,1705858317399,-500.0,0.00042191,31]
[312398772,1705858317409,-2480.88,0.00042191,31]
[312398773,1705858317418,-500.0,0.00042191,31]
[312398774,1705858317427,-2428.09,0.00042191,31]
[312398775,1705858317436,-940.03,0.00042191,31]
[312398776,1705858317445,-2895.16,0.00042191,31]
[312398777,1705858317456,-742.17,0.00042191,31]
[312398778,1705858317466,-500.0,0.00042191,2]
[312398779,1705858317475,-638.01,0.00042191,31]
[312398780,1705858317484,-958.94,0.00042191,31]
[312398781,1705858317494,-337.31922047,0.00042191,31]
[312398782,1705858317503,-500.0,0.00042191,31]
[312398783,1705858317512,-653.31,0.00042191,31]
[312398784,1705858317522,-500.0,0.00042191,31]
[312398785,1705858317531,-3096.04,0.00042191,31]
[312398786,1705858317541,-2622.21,0.00042191,31]
[312398787,1705858317550,-1315.5,0.00042191,31]
[312398788,1705858317559,-500.0,0.00042191,31]
[312398789,1705858317568,-906.52,0.00042191,31]
[312398790,1705858317577,-500.0,0.00042191,31]
[312398791,1705858317587,-500.0,0.00042191,31]
[312398792,1705858317596,-1262.2,0.00042191,31]
[312398793,1705858317605,-539.71,0.00042191,31]
[312398794,1705858317614,-570.8841467,0.00042191,2]
[312398795,1705858317623,-2322.86,0.00042191,31]
[312398796,1705858317633,-500.0,0.00042191,31]
[312398797,1705858317641,-1416.87,0.00042191,31]
[312398798,1705858317650,-1205.84,0.00042191,31]
[312398799,1705858317659,-559.20951407,0.00042191,31]
[312398800,1705858317682,-500.0,0.00042191,31]
[312398801,1705858317706,-500.0,0.00042191,31]
[312398802,1705858317735,-625.74,0.00042191,31]
[312398803,1705858317763,-4179.57,0.00042191,31]
[312398804,1705858317786,-500.0,0.00042191,31]
[312398805,1705858317808,-500.0,0.00042191,2]
[312398806,1705858317819,-500.0,0.00042191,31]
[312398807,1705858317829,-500.0,0.00042191,31]
[312398808,1705858317838,-250.0,0.00042191,31]
[312398809,1705858317847,-525.73473161,0.00042191,31]
[312398810,1705858317856,-992.96,0.00042191,31]
[312398811,1705858317865,-500.0,0.00042191,31]
[312398812,1705858317875,-815.51,0.00042191,31]
[312398813,1705858317884,-500.0,0.00042191,31]
[312398814,1705858317893,-547.37,0.00042191,2]
[312398815,1705858317903,-500.0,0.00042191,31]
[312398816,1705858317912,-500.0,0.00042191,31]
[312398817,1705858317922,-500.0,0.00042191,31]
[312398818,1705858317932,-1425.95,0.00042191,31]
[312398819,1705858317942,-981.19,0.00042191,31]
[312398820,1705858317951,-500.0,0.00042191,31]
[312398821,1705858317962,-500.0,0.00042191,31]
[312398822,1705858317972,-500.0,0.00042191,31]
[312398823,1705858317982,-827.44,0.00042191,31]
[312398824,1705858317992,-1200.56,0.00042191,31]
[312398825,1705858318001,-10855.62,0.00042191,31]
[312398826,1705858318011,-542.38849842,0.00042191,31]
[312398827,1705858318021,-1017.46,0.00042191,31]
[312398828,1705858318031,-500.0,0.00042191,31]
[312398829,1705858318040,-335.88125194,0.00042191,31]
[312398830,1705858318050,-500.0,0.00042191,31]
[312398831,1705858318060,-500.0,0.00042191,2]
[312398832,1705858318072,-500.0,0.00042191,31]
[312398833,1705858318082,-500.0,0.00042191,31]
[312398834,1705858318091,-500.0,0.00042191,31]
[312398835,1705858318101,-9610.43,0.00042191,31]
[312398836,1705858318111,-500.0,0.00042191,31]
[312398837,1705858318121,-500.0,0.00042191,31]
[312398838,1705858318131,-1000.0,0.00042205,2]
[312398839,1705858318141,-1879.85265306,0.00042228,30]
[312398840,1705858318151,-150.39788915,0.00042233,30]
[312398841,1705858318162,-928.04341124,0.0004224,4]
[312398842,1705858318171,-378.45529822,0.00042244,30]
[312398843,1705858318181,-171.02207815,0.00042256,30]
[312398844,1705858318191,-157.48867627,0.00042275,30]
[312398845,1705858318201,-4559.14247544,0.00042292,14]
[312398846,1705858318212,-2270.41904548,0.00042292,14]
[312398847,1705858318222,-3107.7026273,0.00042292,14]
[312398848,1705858318231,-3452.27253791,0.00042292,14]
[312398849,1705858318241,-2731.20362266,0.00042292,14]
[312398850,1705858318250,-152.53682314,0.00042298,30]
[312398851,1705858318259,-150.0,0.00042349,3]
[312398852,1705858318269,-168.18168136,0.00042376,30]
[312398853,1705858318279,-152.0,0.00042381,6]
[312398854,1705858318288,-900.0,0.00042384,6]
[312398855,1705858318298,-900.0,0.00042384,6]
[312398856,1705858318307,-900.0,0.00042384,6]
[312398857,1705858318316,-900.0,0.00042384,6]
[312398858,1705858318326,-900.0,0.00042384,6]
[312398859,1705858318335,-900.0,0.00042384,6]
[312398860,1705858318345,-900.0,0.00042384,6]
[312398861,1705858318354,-900.0,0.00042384,6]
[312398862,1705858318363,-900.0,0.00042384,6]
[312398863,1705858318372,-900.0,0.00042384,6]
[312398864,1705858318382,-900.0,0.00042384,6]
[312398865,1705858318391,-700.0,0.00042384,6]
[312398866,1705858318400,-258.0,0.00042384,6]
[312398867,1705858318409,-1000.1756698,0.000424,40]
[312398868,1705858318419,-156.0,0.000424,7]
[312398869,1705858318428,-1510.0,0.00042462,30]
[312398870,1705858318438,-369.0,0.00042462,30]
[312398871,1705858318447,-155.76653202,0.00042463,30]
[312398872,1705858318456,-597.66,0.00042465,30]
[312398873,1705858318466,-510.0,0.00042465,120]
[312398874,1705858318476,-151.13019096,0.00042485,30]
[312398875,1705858318485,-500.0,0.000425,30]
[312398876,1705858318495,-500.0,0.000425,30]
[312398877,1705858318505,-500.0,0.000425,30]
[312398878,1705858318514,-500.0,0.000425,30]
[312398879,1705858318524,-500.0,0.000425,30]
[312398880,1705858318533,-500.0,0.000425,30]
[312398881,1705858318543,-500.0,0.000425,30]
[312398882,1705858318552,-500.0,0.000425,30]
[312398883,1705858318561,-500.0,0.000425,30]
[312398884,1705858318571,-500.0,0.000425,30]
[312398885,1705858318580,-188.06220512,0.000425,30]
[312398886,1705858318589,-500.0,0.000425,30]
[312398887,1705858318599,-500.0,0.000425,30]
[312398888,1705858318608,-500.0,0.000425,30]
[312398889,1705858318618,-500.0,0.000425,30]
[312398890,1705858318627,-500.0,0.000425,30]
[312398891,1705858318637,-500.0,0.000425,30]
[312398892,1705858318646,-500.0,0.000425,30]
[312398893,1705858318655,-500.0,0.000425,30]
[312398894,1705858318665,-500.0,0.000425,30]
[312398895,1705858318674,-500.0,0.000425,30]
[312398896,1705858318683,-500.0,0.000425,30]
[312398897,1705858318693,-500.0,0.000425,30]
[312398898,1705858318702,-500.0,0.000425,30]
[312398899,1705858318712,-500.0,0.000425,30]
[312398900,1705858318721,-500.0,0.000425,30]
[312398901,1705858318730,-500.0,0.000425,30]
[312398902,1705858318738,-500.0,0.000425,30]
[312398903,1705858318937,-500.0,0.000425,30]
[312398904,1705858318976,-500.0,0.000425,30]
[312398905,1705858318985,-500.0,0.000425,30]
[312398906,1705858318995,-500.0,0.000425,30]
[312398907,1705858319004,-510.37374968,0.000425,30]
[312398908,1705858319013,-1000.0,0.000425,40]
[312398909,1705858319023,-624.0,0.000425,2]
[312398910,1705858319032,-1206.28,0.000425,4]
[312398911,1705858319042,-1206.28,0.000425,4]
[312398912,1705858319051,-1206.28,0.000425,4]
[312398913,1705858319062,-1206.28,0.000425,4]
[312398914,1705858319073,-1206.28,0.000425,4]
[312398915,1705858319083,-1206.28,0.000425,4]
[312398916,1705858319092,-1206.28,0.000425,4]
[312398917,1705858319103,-1206.28,0.000425,4]
[312398918,1705858319112,-1206.28,0.000425,4]
[312398919,1705858319121,-1206.28,0.000425,4]
[312398920,1705858319130,-1206.28,0.000425,4]
[312398921,1705858319141,-1206.28,0.000425,4]
[312398922,1705858319151,-1206.28,0.000425,4]
[312398923,1705858319160,-1206.28,0.000425,4]
[312398924,1705858319170,-1206.28,0.000425,4]
[312398925,1705858319179,-1206.28,0.000425,4]
[312398926,1705858319189,-1206.28,0.000425,4]
[312398927,1705858319198,-1206.28,0.000425,4]
[312398928,1705858319207,-1206.28,0.000425,4]
[312398929,1705858319217,-1206.28,0.000425,4]
[312398930,1705858319227,-300.0,0.000425,4]
[312398931,1705858319236,-150.0,0.0004257,5]
[312398932,1705858319245,-2172.57325668,0.000426,120]
[312398933,1705858319255,-150.39788936,0.00042615,30]
[312398934,1705858319264,-155.76653204,0.00042622,30]
[312398935,1705858319273,-157.48867627,0.00042632,30]
[312398936,1705858319282,-1590.86538353,0.00042687,30]
[312398937,1705858319292,-23666.0,0.0004269,3]
[312398938,1705858319301,-152.04,0.00042694,2]
[312398939,1705858319310,-2719.0,0.000427,92]
[312398940,1705858319320,-152.14113685,0.00042701,30]
[312398941,1705858319330,-151.13019096,0.00042721,30]
[312398942,1705858319339,-1237.76148518,0.00042725,90]
[312398943,1705858319348,-152.14113713,0.00042732,30]
[312398944,1705858319357,-597.66,0.00042739,30]
[312398945,1705858319366,-469.46089907,0.00042739,31]
[312398946,1705858319375,-416.88975934,0.00042739,30]
[312398947,1705858319385,-500.0,0.00042739,2]
[312398948,1705858319394,-500.0,0.00042739,31]
[312398949,1705858319403,-515.86326112,0.00042739,31]
[312398950,1705858319412,-500.0,0.00042739,31]
[312398951,1705858319422,-500.0,0.00042739,31]
[312398952,1705858319431,-500.0,0.00042739,31]
[312398953,1705858319440,-500.0,0.00042739,31]
[312398954,1705858319449,-505.96670023,0.00042739,31]
[312398955,1705858319458,-500.0,0.00042739,31]
[312398956,1705858319467,-504.83958362,0.00042739,31]
[312398957,1705858319476,-500.0,0.00042739,31]
[312398958,1705858319486,-500.0,0.00042739,31]
[312398959,1705858319494,-500.0,0.00042739,31]
[312398960,1705858319503,-637.78552502,0.00042739,31]
[312398961,1705858319513,-500.0,0.00042739,31]
[312398962,1705858319522,-485.77135219,0.00042739,120]
[312398963,1705858319531,-500.0,0.00042739,31]
[312398964,1705858319540,-500.0,0.00042739,31]
[312398965,1705858319550,-500.0,0.00042739,31]
[312398966,1705858319559,-509.23845179,0.00042739,31]
[312398967,1705858319569,-500.0,0.00042739,31]
[312398968,1705858319578,-845.58,0.00042739,31]
[312398969,1705858319588,-500.0,0.00042739,31]
[312398970,1705858319597,-500.0,0.00042739,31]
[312398971,1705858319606,-500.0,0.00042739,31]
[312398972,1705858319615,-800.59,0.00042739,31]
[312398973,1705858319625,-510.27704518,0.00042739,31]
[312398974,1705858319634,-500.0,0.00042739,31]
[312398975,1705858319643,-500.0,0.00042739,31]
[312398976,1705858319652,-508.17,0.00042739,31]
[312398977,1705858319661,-526.82,0.00042739,31]
[312398978,1705858319671,-608.82,0.00042739,31]
[312398979,1705858319680,-346.23761138,0.00042739,31]
[312398980,1705858319690,-500.0,0.00042739,31]
[312398981,1705858319699,-500.0,0.00042739,31]
[312398982,1705858319709,-461.33282209,0.00042739,31]
[312398983,1705858319719,-669.62,0.00042739,31]
[312398984,1705858319729,-500.0,0.00042739,31]
[312398985,1705858319738,-500.0,0.00042739,31]
[312398986,1705858319752,-500.0,0.00042739,31]
[312398987,1705858319762,-500.0,0.00042739,31]
[312398988,1705858319772,-500.0,0.00042739,31]
[312398989,1705858319782,-500.0,0.00042739,31]
[312398990,1705858319792,-456.53925886,0.00042739,31]
[312398991,1705858319802,-529.79,0.00042739,31]
[312398992,1705858319812,-500.0,0.00042739,31]
[312398993,1705858319822,-500.0,0.00042739,31]
[312398994,1705858319832,-500.0,0.00042739,31]
[312398995,1705858319841,-1950.75,0.00042739,31]
[312398996,1705858319851,-500.0,0.00042739,31]
[312398997,1705858319861,-500.0,0.00042739,31]
[312398998,1705858319872,-500.0,0.00042739,31]
[312398999,1705858319882,-500.0,0.00042739,31]
[312399000,1705858319892,-500.0,0.00042739,31]
[312399001,1705858319902,-500.0,0.00042739,31]
[312399002,1705858319912,-500.0,0.00042739,31]
[312399003,1705858319921,-500.0,0.00042739,31]
[312399004,1705858319931,-500.0,0.00042739,31]
[312399005,1705858319941,-739.79,0.00042739,31]